bitfinex-derivatives/quotes_ETHF0:USTF0_20251012
["timestamp","ask_amount","ask_price","bid_price","bid_amount"]
[1760301627472,0.43456,4138.8,4138.7,2.11743512]
[1760301627776,0.43456,4138.8,4138.5,0.0026143]
[1760301627777,0.90658,4138.6,4138.5,0.0026143]
[1760301629474,0.472,4138.6,4138.5,0.0026143]
[1760301629672,0.43457,4138.7,4138.5,3.6449943]
[1760301629974,0.472,4138.6,4138.5,2.12004942]
[1760301630177,0.472,4138.6,4138.5,0.0026143]
[1760301633180,0.43462,4138.2,4138.0,3.64244]
[1760301633378,0.472,4138.3,4138.2,0.43462]
[1760301633582,0.43462,4138.2,4138.0,0.43463]
[1760301633774,0.472,4138.1,4138.0,3.64243]
[1760301633974,0.47423583,4138.1,4138.0,3.64417781]
[1760301634381,0.00223583,4138.1,4138.0,3.64417781]
[1760301634577,0.00223583,4138.1,4138.0,5.76161293]
[1760301634778,0.00223583,4138.1,4138.0,3.64417781]
[1760301637677,3.6798,4139.4,4138.5,1.08646]
[1760301637876,0.43449,4139.4,4139.2,0.4345]
[1760301638078,0.472,4139.8,4138.9,1.08637]
[1760301638274,3.2078,4140.0,4139.9,0.43444]
[1760301638482,0.43434,4140.9,4140.5,0.43437]
[1760301638677,3.8675,4141.0,4140.8,0.43434]
[1760301638876,3.8675,4141.0,4139.9,5.36068915]
[1760301638877,3.2078,4141.5,4141.3,0.43429]
[1760301639178,0.1877,4142.5,4141.9,0.43422]
[1760301639179,0.472,4142.3,4141.9,0.43422]
[1760301639476,0.472,4142.3,4142.1,0.4342]
[1760301639780,0.00283306,4142.3,4142.1,0.43660381]
[1760301639985,0.472,4142.2,4142.1,0.43660381]
[1760301641384,0.9062,4142.2,4142.1,0.00240381]
[1760301643774,0.00283306,4142.3,4142.2,0.4342]
[1760301644178,0.87189,4143.3,4142.9,0.43413]
[1760301644378,0.87189,4143.3,4143.0,0.43411]
[1760301644587,0.4378,4143.3,4143.1,0.4341]
[1760301644788,3.82957,4143.5,4143.1,0.4341]
[1760301645088,0.87198,4142.4,4142.3,3.2078]
[1760301645581,0.87198,4142.4,4142.1,0.00240381]
[1760301645789,0.4342,4142.3,4142.1,0.00240381]
[1760301645988,0.4378,4142.2,4142.1,0.00240381]
[1760301649287,0.4378,4141.4,4140.7,3.2078]
[1760301649498,1.2708,4141.5,4140.7,3.2078]
[1760301649499,0.4378,4140.8,4140.7,3.2078]
[1760301650190,0.4378,4140.8,4140.7,3.20966731]
[1760301650389,0.43434,4140.9,4140.7,3.20966731]
[1760301650595,0.8722,4140.3,4140.2,3.2078]
[1760301650888,0.4378,4139.8,4139.7,13.3448]
[1760301651091,0.87225,4139.8,4139.7,13.3448]
[1760301651396,0.8816,4139.3,4139.2,3.2078]
[1760301651597,0.8816,4139.3,4139.2,3.21090704]
[1760301651598,0.8842658,4139.3,4139.2,3.21090704]
[1760301652696,0.43439,4140.4,4140.0,0.43443]
[1760301652884,0.43442,4140.1,4139.7,3.2078]
[1760301653089,0.4471,4139.9,4139.7,3.2078]
[1760301653289,0.4471,4139.8,4139.7,3.2078]
[1760301653893,0.44973325,4139.8,4139.7,3.2078]
[1760301655297,0.43446,4139.7,4139.5,0.43448]
[1760301655996,0.88156,4139.7,4139.5,0.43448]
[1760301656293,0.43446,4139.7,4139.5,0.43448]
[1760301656497,0.43449,4139.4,4139.2,3.21090704]
[1760301656698,0.4471,4139.3,4139.2,3.21090704]
[1760301656899,3.6549,4139.3,4139.2,0.00310704]
[1760301657089,0.43462,4138.3,4138.1,3.2078]
[1760301657392,1.06209,4138.5,4138.1,3.64242]
[1760301657594,0.1804,4139.0,4138.1,3.2078]
[1760301657797,0.00263325,4139.8,4139.6,0.43446]
[1760301657991,3.2078,4140.9,4139.7,3.2078]
[1760301658193,0.4471,4140.7,4139.7,3.2078]
[1760301658495,0.4471,4140.7,4139.8,0.43445]
[1760301658696,0.88152,4140.2,4139.7,3.64226]
[1760301658896,0.43443,4140.1,4139.8,0.43444]
[1760301659492,0.00245996,4140.2,4139.7,3.2104483]
[1760301659892,0.00245996,4140.2,4140.0,0.43442]
[1760301660395,0.88396996,4140.2,4139.9,0.43443]
[1760301660598,0.43443,4140.0,4139.8,0.43445]
[1760301660797,3.64214,4140.9,4140.6,0.43436]
[1760301660991,3.2078,4141.4,4140.6,0.43436]
[1760301661393,1.08552,4142.2,4140.3,4.29379]
[1760301661394,3.64204,4141.9,4140.7,4.77765573]
[1760301661594,0.43425,4141.8,4141.6,0.43426]
[1760301661791,0.4369264,4141.8,4141.2,3.2078]
[1760301661994,0.0026764,4141.8,4141.2,3.2078]
[1760301662296,0.43428,4141.5,4141.2,3.2078]
[1760301662496,0.43428,4141.5,4141.2,3.6421]
[1760301662699,0.43429,4141.4,4141.2,3.6421]
[1760301663193,0.43429,4141.4,4141.2,3.2078]
[1760301663396,0.43433,4141.0,4140.5,3.2078]
[1760301663699,0.43432,4141.1,4140.5,3.2078]
[1760301663898,0.43433,4141.0,4140.5,5.36068915]
[1760301664300,0.1804,4141.5,4140.9,0.43433]
[1760301664499,0.8814,4141.3,4141.1,3.2078]
[1760301665201,0.8814,4141.3,4141.1,3.64211]
[1760301666601,0.4343,4141.3,4141.1,3.2078]
[1760301666898,0.4471,4141.2,4141.1,3.2078]
[1760301667492,0.4343,4141.3,4140.5,2.93131508]
[1760301667493,1.71334,4141.0,4140.5,2.93131508]
[1760301667692,0.6275,4140.5,4140.1,3.2078]
[1760301667896,0.4344,4140.3,4140.1,3.64222]
[1760301668099,3.2104764,4141.8,4140.2,1.08603]
[1760301668301,3.6575764,4141.8,4141.1,0.43431]
[1760301668599,0.4471,4141.2,4140.9,3.2078]
[1760301668801,0.8814,4141.3,4140.9,0.43433]
[1760301669000,0.43427,4141.5,4141.2,0.4343]
[1760301669205,0.43429,4141.3,4141.1,0.43431]
[1760301669503,0.88139,4141.3,4141.1,0.43431]
[1760301669805,0.6275,4141.5,4140.8,3.2078]
[1760301670001,0.4343,4141.3,4141.2,0.4343]
[1760301670398,0.43431,4141.2,4141.0,0.43432]
[1760301670898,3.2104764,4141.8,4141.6,0.43426]
[1760301671602,1.2657,4143.0,4141.3,1.08573]
[1760301671603,3.8353,4143.0,4142.0,0.43421]
[1760301671805,1.0854,4142.7,4141.7,3.2078]
[1760301672007,0.43425,4141.7,4141.3,2.93131508]
[1760301672196,0.43425,4141.7,4141.6,0.43426]
[1760301672598,0.43429,4141.4,4141.2,3.64209]
[1760301673201,0.00207338,4141.7,4141.5,0.43427]
[1760301674807,0.4471,4141.6,4141.5,0.43427]
[1760301675311,0.00207338,4141.7,4141.5,0.43427]
[1760301676701,3.2078,4142.4,4142.1,0.43421]
[1760301676899,0.43419,4142.3,4142.1,0.43421]
[1760301677602,0.4471,4142.0,4141.9,3.2078]
[1760301677803,0.6275,4142.0,4141.9,3.2078]
[1760301678003,0.88135,4141.7,4141.6,2.1478543]
[1760301678300,0.88137,4141.6,4141.4,0.43428]
[1760301678505,0.88138,4141.4,4141.3,5.3556543]
[1760301678799,0.88138,4141.4,4141.3,3.2078]
[1760301681207,0.43431,4141.1,4141.0,2.1478543]
[1760301681510,0.88141,4141.1,4140.9,2.5821843]
[1760301681701,0.43434,4140.9,4140.8,3.2078]
[1760301681904,0.89004,4140.9,4140.8,3.2078]
[1760301682607,0.89004,4140.9,4140.3,2.1478543]
[1760301682608,0.89009,4140.4,4140.3,2.1478543]
[1760301682803,0.4557,4140.3,4140.2,2.1478543]
[1760301683003,1.07683,4140.0,4139.9,2.1478543]
[1760301683207,0.89015,4139.8,4139.7,0.0026483]
[1760301685913,0.43442,4140.2,4139.7,2.1505026]
[1760301686107,0.43442,4140.2,4140.1,5.3556543]
[1760301686308,0.43439,4140.4,4140.2,0.43441]
[1760301686504,0.89011,4140.2,4140.1,2.1478543]
[1760301686704,1.08587,4140.9,4140.1,2.1478543]
[1760301686705,0.1804,4141.5,4141.2,0.43429]
[1760301687010,0.6361,4141.5,4141.4,3.2078]
[1760301687206,0.1804,4141.5,4141.0,2.1478543]
[1760301687410,0.4557,4141.4,4141.0,2.1478543]
[1760301687916,0.6424,4141.0,4140.9,2.1478543]
[1760301688107,0.89004,4140.9,4140.8,2.1478543]
[1760301688307,0.43437,4140.6,4140.5,2.5822343]
[1760301688608,0.4557,4141.3,4141.0,0.43431]
[1760301688909,1.08563,4141.8,4140.6,1.08592]
[1760301688910,0.89,4141.2,4141.1,2.15104065]
[1760301689311,3.8439,4141.5,4141.2,0.4343]
[1760301689504,3.8439,4141.5,4141.2,2.58534065]
[1760301689702,3.3945,4142.0,4141.3,1.08574]
[1760301689913,0.43423,4141.9,4141.7,0.43425]
[1760301690115,0.43423,4141.9,4141.7,3.64205]
[1760301690306,0.43423,4141.9,4141.7,5.79309065]
[1760301691311,0.4557,4141.8,4141.7,3.2078]
[1760301691512,0.1867,4142.0,4141.8,0.43424]
[1760301691817,0.62092,4142.0,4141.8,0.43424]
[1760301692006,0.4342,4142.2,4141.7,3.2078]
[1760301692206,0.4342,4142.2,4142.1,2.15006513]
[1760301692403,0.8899,4142.2,4142.1,2.15006513]
[1760301693303,0.43422,4142.0,4141.9,2.15006513]
[1760301693509,1.07662,4142.0,4141.9,2.15006513]
[1760301694113,0.43424,4141.8,4141.7,3.2078]
[1760301694602,0.88996,4141.6,4141.5,2.93131508]
[1760301695007,0.43429,4141.4,4141.3,0.43429]
[1760301695613,0.43429,4141.4,4141.2,6.13911508]
[1760301695817,0.88999,4141.4,4141.2,6.13911508]
[1760301696012,0.43429,4141.4,4141.2,6.13911508]
[1760301696216,0.4557,4141.3,4141.2,3.2078]
[1760301696406,0.4557,4141.3,4141.1,3.36561508]
[1760301696407,0.4343,4141.2,4141.1,2.93131508]
[1760301697810,0.4343,4141.2,4141.1,3.36562508]
[1760301698118,0.4343,4141.2,4141.1,2.93131508]
[1760301698416,0.89,4141.2,4141.1,2.93131508]
[1760301698604,0.89001,4141.1,4141.0,2.93131508]
[1760301698808,0.89001,4141.1,4141.0,5.08283996]
[1760301699015,0.4557,4140.9,4140.8,1.116121]
[1760301699315,0.43441,4140.2,4140.1,3.2078]
[1760301699514,0.43441,4140.2,4140.0,2.93131508]
[1760301699816,1.07683,4140.0,4139.9,2.93131508]
[1760301700210,1.07683,4140.0,4139.9,0.0367421]
[1760301701512,0.89015,4139.8,4139.7,0.0026483]
[1760301701809,4.09795,4139.8,4139.7,0.0026483]
[1760301703013,0.6424,4140.0,4139.7,0.0026483]
[1760301703216,0.43445,4139.9,4139.7,0.0026483]
[1760301703412,0.89015,4139.9,4139.7,0.0026483]
[1760301704017,0.4279,4139.8,4139.7,0.0026483]
[1760301705312,0.4345,4139.3,4139.2,2.93131508]
[1760301705617,0.4279,4139.2,4139.1,10.134]
[1760301706013,0.1704,4138.5,4138.4,6.13911508]
[1760301706215,1.03289,4138.5,4138.4,3.2078]
[1760301706514,0.00204104,4138.5,4138.4,3.21052241]
[1760301707012,0.00204104,4138.5,4138.4,7.98817814]
[1760301707214,0.00204104,4138.5,4138.4,3.21052241]
[1760301707515,0.43451,4139.3,4138.4,3.21052241]
[1760301707716,0.86243,4139.1,4139.0,3.2078]
[1760301708017,3.2078,4139.7,4139.0,3.2078]
[1760301708218,0.43446,4139.8,4139.5,3.2078]
[1760301708413,0.86236,4139.8,4139.5,3.2078]
[1760301708716,0.4279,4139.7,4139.5,3.2078]
[1760301709523,0.86237,4139.7,4139.5,3.2078]
[1760301709721,0.4279,4139.6,4139.5,3.2078]
[1760301711015,0.4279,4139.6,4139.5,5.35646233]
[1760301711617,0.4345,4139.4,4139.2,2.14866233]
[1760301711921,0.88631,4139.2,4139.1,2.14866233]
[1760301712121,0.43451,4139.2,4139.0,3.2078]
[1760301712423,2.6343812,4139.3,4138.6,2.93131508]
[1760301712424,0.43456,4138.8,4138.6,2.14866233]
[1760301712621,0.4518,4138.7,4138.6,2.14866233]
[1760301713018,0.4518,4138.7,4138.4,0.00272241]
[1760301713019,0.43458,4138.6,4138.4,0.00272241]
[1760301713217,0.6302,4138.5,4138.4,0.00272241]
[1760301718824,3.2078,4139.3,4139.2,0.43451]
[1760301719027,0.4518,4139.3,4139.2,0.43451]
[1760301719229,0.1784,4139.5,4139.2,0.43451]
[1760301719524,0.4518,4139.3,4139.2,0.43451]
[1760301719730,0.4518,4139.4,4139.1,0.43452]
[1760301719928,0.6302,4139.0,4138.9,3.2078]
[1760301720232,0.88635,4138.9,4138.6,0.43457]
[1760301720429,0.4518,4138.8,4138.7,0.43456]
[1760301721228,0.4518,4139.4,4139.2,0.4345]
[1760301721424,0.45356829,4139.8,4139.6,0.43446]
[1760301721620,0.00176829,4139.8,4139.6,0.43446]
[1760301721936,3.2078,4140.9,4139.9,1.08609]
[1760301722228,0.1784,4141.0,4139.3,3.2078]
[1760301722229,0.88624,4139.9,4139.3,2.93131508]
[1760301722423,0.4518,4140.2,4139.9,0.43444]
[1760301722629,0.88621,4140.2,4140.0,3.2078]
[1760301722828,0.4518,4140.2,4140.1,0.43441]
[1760301723023,0.45419402,4140.2,4140.1,0.43441]
[1760301723329,0.4518,4140.1,4140.0,3.2078]
[1760301724637,1.06468,4139.5,4139.4,2.14382138]
[1760301725042,0.4518,4139.4,4138.9,0.43454]
[1760301725335,0.1784,4139.0,4138.9,0.43454]
[1760301725535,0.6302,4139.0,4138.9,0.43454]
[1760301725736,0.4518,4139.4,4139.3,0.4345]
[1760301726338,0.4518,4139.4,4139.3,3.6423]
[1760301726547,3.3862,4140.0,4139.9,0.43444]
[1760301726737,0.1784,4140.0,4139.9,0.43444]
[1760301726940,3.2078,4140.7,4139.8,3.2078]
[1760301726941,0.43437,4140.6,4139.8,3.2078]
[1760301727133,0.6302,4140.5,4139.9,2.14382138]
[1760301727338,0.6302,4140.5,4139.8,3.2078]
[1760301727339,0.6302,4140.5,4140.1,2.14382138]
[1760301727546,0.6302,4140.5,4140.1,2.57824138]
[1760301728044,0.6302,4140.5,4140.1,0.43442]
[1760301728845,1.06458,4140.5,4140.1,0.43442]
[1760301729043,0.45419402,4140.2,4140.1,0.43442]
[1760301729948,0.00239402,4140.2,4140.1,0.43442]
[1760301730139,0.45419402,4140.2,4140.1,0.43442]
[1760301730939,3.2078,4141.2,4141.1,0.43431]
[1760301731135,0.4518,4141.8,4141.3,1.08572]
[1760301731338,3.2078,4142.2,4142.1,0.43421]
[1760301731544,3.6596,4142.2,4142.1,0.43421]
[1760301732145,3.66243906,4142.2,4142.1,0.43729314]
[1760301733650,0.45463906,4142.2,4142.1,0.43729314]
[1760301735850,0.45463906,4142.2,4142.1,0.00308314]
[1760301736052,3.00274069,4142.2,4142.1,0.00308314]
[1760301737157,0.45463906,4142.2,4142.1,0.00308314]
[1760301738060,0.00283906,4142.2,4142.1,3.21088314]
[1760301738852,0.1784,4143.0,4142.9,0.43413]
[1760301739057,0.4518,4143.4,4143.3,0.43408]
[1760301739252,0.4518,4143.9,4143.5,1.08516]
[1760301739458,0.6302,4144.0,4143.9,0.43402]
[1760301739859,0.63226959,4144.0,4143.9,0.43402]
[1760301740563,0.6302,4143.5,4143.4,0.43407]
[1760301741259,0.1784,4143.5,4143.1,0.4341]
[1760301741456,0.6088,4143.0,4142.9,3.64192]
[1760301743464,0.61086959,4144.0,4143.9,0.43402]
[1760301745366,0.00206959,4144.0,4143.9,0.43402]
[1760301745956,0.00206959,4144.0,4143.6,3.2078]
[1760301745957,0.4304,4143.7,4143.6,3.2078]
[1760301749361,0.60646959,4144.0,4143.9,0.43402]
[1760301750966,0.4304,4143.4,4143.0,3.2078]
[1760301751464,0.4341,4143.1,4143.0,3.2078]
[1760301751670,0.8645,4143.1,4143.0,3.64192]
[1760301752771,0.4304,4143.1,4143.0,3.64192]
[1760301753573,0.174,4143.5,4143.4,0.43407]
[1760301754072,3.2078,4144.2,4143.9,0.43402]
[1760301754267,0.00206959,4144.0,4143.9,0.43402]
[1760301754775,0.00206959,4144.0,4143.9,3.64182]
[1760301754974,0.60646959,4144.0,4143.9,3.64182]
[1760301755974,1.04047959,4144.0,4143.9,0.43402]
[1760301756174,0.6044,4143.5,4143.4,3.64187]
[1760301757169,0.6044,4143.5,4143.4,0.43407]
[1760301758572,0.4304,4143.4,4142.9,3.2078]
[1760301758776,0.6044,4143.0,4142.9,3.64193]
[1760301760278,0.6044,4143.5,4143.4,0.43407]
[1760301760479,0.60646959,4144.0,4143.9,0.43402]
[1760301760678,0.60646959,4144.0,4143.9,3.64182]
[1760301760880,0.00206959,4144.0,4143.9,3.64182]
[1760301762179,0.4304,4144.9,4144.8,0.43393]
[1760301762983,0.43234258,4144.9,4144.8,0.43393]
[1760301763475,0.4395,4144.4,4144.3,0.43398]
[1760301763868,0.4395,4144.4,4144.1,3.2078]
[1760301764075,0.4395,4144.4,4144.3,0.43397]
[1760301764270,0.1686,4144.5,4144.3,0.43397]
[1760301764675,0.4395,4144.4,4144.3,0.43397]
[1760301765869,0.4395,4143.9,4143.8,0.43403]
[1760301766675,0.4395,4143.9,4143.6,3.64185]
[1760301766979,0.87354,4143.7,4143.6,3.64185]
[1760301767169,0.4395,4143.7,4143.6,3.64185]
[1760301767578,0.87354,4143.7,4143.6,3.2078]
[1760301768581,0.4395,4143.7,4143.6,3.64185]
[1760301770082,0.4395,4143.7,4143.6,3.2078]
[1760301771079,0.8736,4143.1,4143.0,3.2078]
[1760301771277,0.87365,4142.7,4142.6,0.43415]
[1760301771473,0.87606,4142.6,4142.5,3.2078]
[1760301771678,0.8761,4142.2,4142.1,2.15443399]
[1760301771881,0.8761,4142.2,4142.1,0.00308314]
[1760301774788,4.0839,4142.2,4142.1,0.00308314]
[1760301775084,6.8075502,4142.2,4142.1,0.00308314]
[1760301775387,6.8075502,4142.2,4141.2,3.2078]
[1760301775388,0.87619,4141.3,4141.2,3.2078]
[1760301775584,0.87619,4141.3,4140.1,3.2078]
[1760301775585,0.1695,4140.5,4140.1,3.2078]
[1760301775889,0.6114,4140.0,4139.9,3.2078]
[1760301776185,0.60399,4139.5,4139.3,2.15135085]
[1760301776380,0.4419,4139.4,4139.3,0.00210157]
[1760301777588,0.60562536,4140.0,4139.7,0.43446]
[1760301777776,0.4419,4139.9,4139.8,3.2078]
[1760301779283,0.43447,4139.7,4139.5,0.43448]
[1760301779482,0.4419,4139.6,4139.5,0.43448]
[1760301779681,0.4419,4139.6,4139.3,3.20990157]
[1760301779682,0.4419,4139.4,4139.3,3.64440157]
[1760301781291,0.1695,4139.5,4139.3,3.64440157]
[1760301781688,0.4419,4139.8,4139.7,0.43446]
[1760301785091,0.00169536,4140.0,4139.9,0.43444]
[1760301785291,0.61309536,4140.0,4139.9,3.64224]
[1760301789687,3.8192,4141.5,4141.4,0.43428]
[1760301789888,3.8192,4141.5,4141.3,0.43429]
[1760301789889,0.6114,4141.5,4141.3,0.43429]
[1760301790190,0.1695,4141.5,4141.3,3.64209]
[1760301790388,0.4419,4142.4,4141.3,7.98266486]
[1760301790584,0.6114,4142.0,4141.9,3.2078]
[1760301790991,0.6114,4142.0,4141.8,0.43424]
[1760301791197,0.4419,4141.9,4141.8,0.43424]
[1760301797396,0.43619576,4142.4,4141.8,0.43424]
[1760301797397,0.00201576,4142.4,4142.3,0.43419]
[1760301797702,3.64184,4143.7,4143.4,0.43407]
[1760301798496,0.17159576,4143.5,4143.4,0.43661996]
[1760301799498,0.00209576,4143.5,4143.4,0.43661996]
[1760301799799,0.61349576,4143.5,4143.4,0.43661996]
[1760301800697,0.61349576,4143.5,4143.4,0.00254996]
[1760301800895,0.61349576,4143.5,4142.5,2.21705085]
[1760301800896,0.4419,4142.6,4142.5,3.2078]
[1760301801900,0.4419,4142.6,4142.5,3.21078547]
[1760301806101,0.4419,4142.6,4142.5,3.64495547]
[1760301808400,0.4419,4142.6,4141.5,3.2078]
[1760301808401,0.43425,4141.7,4141.5,3.2078]
[1760301808606,0.4169,4141.6,4141.5,3.2078]
[1760301809107,0.85121,4141.1,4141.0,3.2078]
[1760301809303,0.18,4142.0,4141.1,1.14149]
[1760301809508,0.43426,4141.7,4141.5,3.2078]
[1760301809701,0.43426,4141.7,4141.5,3.64207]
[1760301809897,0.4169,4141.6,4141.5,3.64207]
[1760301810813,0.18,4141.5,4141.2,0.4343]
[1760301811306,0.4169,4141.3,4141.2,0.4343]
[1760301811806,0.4169,4141.1,4141.0,3.64480348]
[1760301812907,0.4169,4141.1,4141.0,3.21048348]
[1760301813098,0.4169,4141.1,4141.0,0.00268348]
[1760301816308,0.85121,4141.1,4141.0,0.43700348]
[1760301817106,0.4169,4141.1,4141.0,0.43700348]
[1760301817408,0.4169,4141.1,4141.0,3.64480348]
[1760301817609,0.85121,4141.1,4141.0,3.21048348]
[1760301818105,0.85121,4141.1,4141.0,0.00268348]
[1760301820014,0.85121,4141.1,4141.0,0.43700348]
[1760301820015,0.4169,4141.1,4141.0,0.43700348]
[1760301820203,0.85121,4141.1,4141.0,0.43700348]
[1760301820510,0.4169,4141.1,4141.0,0.43700348]
[1760301820910,0.85121,4141.1,4141.0,0.43700348]
[1760301821514,0.18,4141.5,4141.4,0.43428]
[1760301822203,0.5969,4141.5,4141.4,0.43428]
[1760301823414,0.18,4142.5,4142.4,0.43418]
[1760301823708,0.6062,4142.5,4142.4,0.43418]
[1760301825913,0.43418,4142.4,4142.2,0.43419]
[1760301826212,0.4262,4142.3,4142.2,0.43419]
[1760301827914,0.4262,4141.8,4141.7,0.43425]
[1760301828513,0.86044,4141.8,4141.7,0.43425]
[1760301830809,0.86045,4141.7,4141.6,2.15135085]
[1760301831007,0.43429,4141.3,4141.2,3.2078]
[1760301831207,0.43431,4141.1,4141.0,2.15403433]
[1760301831415,0.86051,4141.1,4141.0,2.15403433]
[1760301831613,0.86051,4141.1,4141.0,2.58835433]
[1760301831810,0.43437,4140.6,4140.5,2.93131508]
[1760301832011,0.43437,4140.6,4140.2,3.2078]
[1760301832012,0.1608,4140.5,4140.2,3.2078]
[1760301832315,0.4192,4140.4,4140.3,0.4344]
[1760301832714,0.8536,4140.3,4140.1,0.43442]
[1760301833018,0.85615288,4140.3,4140.1,0.43658926]
[1760301834820,0.85615288,4140.3,4140.1,0.00216926]
[1760301835016,0.4192,4140.2,4140.1,0.43657926]
[1760301835209,0.00255288,4140.3,4140.2,0.0408]
[1760301835516,0.42175288,4140.3,4140.2,3.2078]
[1760301837513,0.00255288,4140.3,4140.2,3.2078]
[1760301837816,0.00255288,4140.3,4140.2,3.2486]
[1760301838810,0.00255288,4140.3,4140.2,3.68301]
[1760301839011,0.42175288,4140.3,4140.2,3.64221]
[1760301839914,0.42175288,4140.3,4140.1,2.93348434]
[1760301840120,0.4192,4140.2,4140.1,0.43657926]
[1760301840827,0.85361,4140.2,4140.1,0.43657926]
[1760301841522,0.00255288,4140.3,4140.2,0.47521]
[1760301841723,0.00255288,4140.3,4140.2,3.68301]
[1760301842021,1.08562,4141.8,4140.2,3.68301]
[1760301842022,0.43424,4141.8,4141.4,0.43428]
[1760301842223,0.1608,4141.5,4141.4,2.58802917]
[1760301842518,3.2078,4141.9,4141.8,0.43424]
[1760301842712,3.627,4141.9,4141.8,0.43424]
[1760301843021,3.6300621,4141.9,4141.8,0.43424]
[1760301843912,0.0030621,4141.9,4141.8,0.47504]
[1760301845424,0.4192,4142.7,4142.3,0.0408]
[1760301845717,0.4192,4142.7,4142.6,0.43416]
[1760301846424,0.42134884,4142.7,4142.6,0.43416]
[1760301847113,0.00214884,4142.7,4142.6,0.47496]
[1760301847426,0.58,4144.0,4143.9,0.43402]
[1760301847620,0.58,4144.5,4144.4,0.43397]
[1760301847919,0.58,4144.5,4144.4,3.64177]
[1760301848332,0.58293384,4144.5,4144.4,0.00239078]
[1760301848825,3.27836529,4144.5,4144.4,0.00239078]
[1760301850023,0.58293384,4144.5,4144.4,0.00239078]
[1760301851230,3.35402101,4144.5,4144.4,0.00239078]
[1760301851624,0.58293384,4144.5,4144.4,0.00239078]
[1760301854232,0.68293384,4144.5,4144.4,0.00239078]
[1760301856427,0.68293384,4144.5,4144.4,3.21019078]
[1760301857031,0.10293384,4144.5,4144.4,3.25099078]
[1760301857343,0.4192,4145.3,4145.2,0.43388]
[1760301857530,0.4192,4145.3,4145.2,3.64168]
[1760301858134,0.42221958,4145.3,4145.2,3.64168]
[1760301858734,0.4192,4144.9,4144.7,3.2078]
[1760301858930,0.58,4144.5,4144.4,0.00239078]
[1760301860128,0.1608,4145.0,4144.4,1.08731078]
[1760301860327,0.58,4145.0,4144.8,0.43393]
[1760301860529,0.00301958,4145.3,4145.2,0.43388]
[1760301860723,0.00301958,4145.3,4145.2,4.07668]
[1760301862326,0.00301958,4145.3,4145.2,3.64168]
[1760301862531,0.42361958,4145.3,4145.2,3.64168]
[1760301863941,3.04613106,4145.3,4145.2,0.43388]
[1760301864332,0.42361958,4145.3,4145.2,0.43388]
[1760301864637,3.04613106,4145.3,4145.2,0.43388]
[1760301867133,9.58e-06,4145.3,4145.2,4.05988]
[1760301867733,3.2078,4146.8,4146.7,0.43373]
[1760301867936,3.2078,4146.8,4146.7,0.85193]
[1760301868130,5.84316373,4146.8,4146.7,0.85193]
[1760301868332,3.2078,4147.4,4147.3,0.43367]
[1760301868732,0.00253786,4147.4,4147.3,0.85187]
[1760301869139,2.692347,4147.4,4147.0,3.2078]
[1760301869340,2.692347,4147.4,4146.3,1.08441]
[1760301869341,5.900147,4147.4,4146.4,1.0844]
[1760301869644,0.4206,4147.3,4147.1,0.43368]
[1760301869836,0.4206,4147.3,4146.0,3.2078]
[1760301869837,0.43371,4146.9,4146.0,3.2078]
[1760301870042,0.1621,4146.5,4146.0,3.626]
[1760301870242,0.4206,4146.4,4146.1,0.4182]
[1760301870441,0.4206,4146.7,4146.6,0.43374]
[1760301871040,3.21733277,4146.7,4146.6,0.43374]
[1760301872950,0.00253786,4147.4,4146.0,4.29228]
[1760301872951,3.21033786,4147.4,4147.3,0.85187]
[1760301873137,0.00253786,4147.4,4147.3,0.85187]
[1760301880545,0.4206,4148.2,4147.6,1.08407]
[1760301880743,0.4206,4148.3,4148.2,0.43357]
[1760301881049,3.2078,4148.4,4148.3,0.4182]
[1760301881447,0.4206,4148.8,4148.6,0.4182]
[1760301881647,0.42247766,4148.8,4148.7,0.43352]
[1760301881851,0.42247766,4148.8,4148.7,0.85172]
[1760301882049,3.15781516,4148.8,4148.7,0.85172]
[1760301882551,3.15781516,4148.8,4148.7,0.43352]
[1760301884747,3.15781516,4148.8,4148.7,0.42779759]
[1760301887150,3.59132516,4148.8,4148.6,0.00283799]
[1760301887354,3.15781516,4148.8,4148.6,0.43636799]
[1760301887852,3.15781516,4148.8,4148.6,0.00283799]
[1760301888450,3.15781516,4148.8,4148.7,0.43352]
[1760301890545,3.15781516,4148.8,4148.3,1.08388]
[1760301890546,0.1588,4148.5,4147.5,1.08411]
[1760301890856,3.2078,4148.3,4147.9,1.08401]
[1760301891155,3.2078,4148.3,4148.2,0.43357]
[1760301891454,5.97782816,4148.3,4148.2,0.43357]
[1760301891656,6.38062816,4148.3,4148.2,0.43569249]
[1760301895358,6.92562816,4148.3,4148.2,0.43569249]
[1760301895858,6.92562816,4148.3,4148.2,0.00212249]
[1760301896052,6.92562816,4148.3,4148.2,0.43569249]
[1760301897359,3.2078,4148.3,4148.2,1.42229249]
[1760301897846,0.00187766,4148.8,4148.7,1.42012]
[1760301898047,0.00187766,4148.8,4148.7,4.62792]
[1760301898453,3.2078,4149.8,4149.7,0.86051]
[1760301899457,3.20966446,4149.8,4149.7,0.86051]
[1760301899755,0.00186446,4149.8,4149.7,0.86051]
[1760301900259,3.08049858,4149.8,4149.7,0.86051]
[1760301900751,2.67769858,4149.8,4149.7,0.86051]
[1760301901151,3.08049858,4149.8,4149.7,0.43341]
[1760301901351,5.88549858,4149.8,4149.0,0.1631]
[1760301901553,0.4028,4149.7,4149.1,1.0837]
[1760301901858,2.51888257,4149.6,4149.5,0.43344]
[1760301902057,2.92168257,4149.6,4149.5,0.43344]
[1760301902359,0.4028,4149.6,4149.5,0.43344]
[1760301902753,2.63530186,4149.6,4149.5,0.86054]
[1760301902953,2.63530186,4149.6,4149.5,1.02364]
[1760301903157,3.20966446,4149.8,4149.7,0.86051]
[1760301903362,3.61246446,4149.8,4149.7,0.43341]
[1760301903564,6.32465948,4149.8,4149.7,0.43341]
[1760301903758,3.20966446,4149.8,4149.7,0.86051]